Workbook

Sheet 一般公共预算收入预算调整
A1: 附表一
A2: 2024年区级一般公共预算收入调整表
E3: 单位：万元
A4: 项目 | B4: 2024年预算数 | C4: 2024年预算调整数 | E4: 备注
C5: 调整金额 | D5: 调整后预算数
A6: 一、增值税 | B6: =217392+418.545-1040.545 -> 216,770 | C6: =D6-B6 -> -40,457 | D6: 176,313
A7: 二、企业所得税 | B7: 57,850 | C7: =D7-B7 -> -5,460 | D7: 52,390
A8: 三、个人所得税 | B8: 35,120 | C8: -4,574 | D8: 30,546
A9: 四、资源税 | B9: 400 | C9: -154 | D9: 246
A10: 五、城市维护建设税 | B10: 27,600 | C10: -5,885 | D10: 21,715
A11: 六、房产税 | B11: 25,000 | C11: 11,359 | D11: 36,359
A12: 七、印花税 | B12: 12,130 | C12: -459 | D12: 11,671
A13: 八、城镇土地使用税 | B13: 15,300 | C13: 850 | D13: 16,150
A14: 九、土地增值税 | B14: 71,600 | C14: -4,461 | D14: 67,139
A15: 十、车船税 | B15: 1,300 | C15: 309 | D15: 1,609
A16: 十一、耕地占用税 | B16: 650 | C16: 480 | D16: 1,130
A17: 十二、契税 | B17: 70,930 | C17: -13,079 | D17: 57,851
A18: 十三、环境保护税 | B18: 140 | C18: 60 | D18: 200
A19: 十四、其他税收收入 | B19: 210 | C19: 1,471 | D19: 1,681
A20: 十五、专项收入 | B20: 15,000 | C20: -2,922 | D20: 12,078
A21: 十六、行政事业性收费收入 | B21: =18940+1062 -> 20,002 | C21: -6,340 | D21: 13,662
A22: 十七、罚没收入 | B22: 5,800 | C22: 6,806 | D22: 12,606
A23: 十八、国有资本经营收入 | B23: 0 | C23: 0 | D23: 0
A24: 十八、国有资源（资产）有偿使用收入 | B24: 27,382 | C24: 25,260 | D24: 52,642
A25: 十九、捐赠 | B25: 16 | C25: -12 | D25: 4
A26: 二十、其他收入 | B26: 1,100 | C26: -92 | D26: 1,008
A27: 一般公共预算收入合计 | B27: =SUM(B6:B26) -> 604,300 | C27: =SUM(C6:C26) -> -37,300 | D27: =SUM(D6:D26) -> 567,000
A28: 债务收入 | B28: =B29 -> 5,400 | C28: =C29 -> 0 | D28: =D29 -> 5,400
A29: 地方政府债券收入 | B29: 5,400 | C29: =D29-B29 -> 0 | D29: 5,400
A30: 转移性收入 | B30: =B31+B32+B33+B34 -> 47,321 | C30: =C31+C32+C33+C34 -> 87,015 | D30: =D31+D32+D33+D34 -> 134,336
A31: 返还性收入 | B31: 38,465 | C31: 0 | D31: 38,465
A32: 一般性转移支付收入 | B32: 8,856 | C32: 59,177 | D32: =63033+5000 -> 68033
A33: 专项转移支付收入 | B33: 0 | C33: 12,976 | D33: =10976+2000 -> 12976
A34: 调用预算稳定调节基金及调入资金 | B34: 0 | C34: 14,862 | D34: =12000+2862 -> 14862
A35: 上年结转及结余收入 | B35: 13,538 | C35: 3,000 | D35: 16,538
A36: 总收入合计 | B36: =B27+B28+B30+B35 -> 670,560 | C36: =C27+C28+C30+C35 -> 52,714 | D36: =D27+D28+D30+D35 -> 723,274

Sheet 一般公共预算支出预算调整
A1: 附表二
A2: 2024年区级一般公共预算支出调整表
D3: 单位：万元
A4: 项目 | B4: 2024年预算数 | C4: 2024年预算调整数
C5: 调整金额 | D5: 调整后预算数
A6: 一、一般公共服务支出 | B6: =61980.57+5.16 -> 61,986 | C6: =D6-B6 -> -11,851 | D6: 50,135
A7: 二、国防支出 | B7: 0 | C7: =D7-B7 -> 80 | D7: 80
A8: 三、公共安全支出 | B8: =14547.49+1141.330448 -> 15,689 | C8: -3,738 | D8: 11,951
A9: 四、教育支出 | B9: =118154.37+1790.966515 -> 119,945 | C9: 4,055 | D9: 124,000
A10: 五、科学技术支出 | B10: 701 | C10: 680 | D10: 1,381
A11: 六、文化旅游体育与传媒支出 | B11: =1489.71+145.75455 -> 1,635 | C11: -260 | D11: 1,375
A12: 七、社会保障和就业支出 | B12: =109698.69+8708.53031 -> 118,407 | C12: -17,059 | D12: 101,348
A13: 八、卫生健康支出 | B13: =51852.31+2987.909962 -> 54,840 | C13: -4,048 | D13: 50,792
A14: 九、节能环保支出 | B14: 1,307 | C14: -361 | D14: 946
A15: 十、城乡社区支出 | B15: 40,506 | C15: 2,774 | D15: 43,280
A16: 十一、农林水支出 | B16: =10414.79+173.5 -> 10,588 | C16: -1,511 | D16: =11577-2500 -> 9,077
A17: 十二、交通运输支出 | B17: 50 | C17: -50 | D17: 0
A18: 十三、资源勘探工业信息等支出 | B18: =5482.02+2640 -> 8,122 | C18: -5,561 | D18: 2,561
A19: 十四、商业服务业等支出 | B19: =2400+80 -> 2,480 | C19: -382 | D19: 2,098
A20: 十五、金融支出 | B20: 0 | C20: 29 | D20: 29
A21: 十六、援助其他地区支出 | B21: 0 | C21: 683 | D21: 683
A22: 十七、自然资源海洋气象等支出 | B22: 1,814 | C22: -462 | D22: 1,352
A23: 十八、住房保障支出 | B23: =7985.27+1459.000171 -> 9,444 | C23: 863 | D23: 10,307
A24: 十九、灾害防治及应急管理支出 | B24: 2,066 | C24: -245 | D24: 1,821
A25: 二十、预备费 | B25: 10,000 | C25: -10,000 | D25: 0
A26: 二十一、债务付息支出 | B26: 7,221 | C26: -5,425 | D26: 1,796
A27: 二十二、其他支出 | B27: 25,000 | C27: -25,000 | D27: 0
A28: 一般公共预算支出合计 | B28: =SUM(B6:B27) -> 491,802 | C28: =SUM(C6:C27) -> -76,790 | D28: =SUM(D6:D27) -> 415,012
A29: 转移性支出 | B29: =SUM(B30:B32) -> 178,757 | C29: =SUM(C30:C32) -> 94,505 | D29: =SUM(D30:D32) -> 273,262
A30: 上解支出 | B30: =173357.39 -> 173,357 | C30: =D30-B30 -> 91,643 | D30: 265000
A31: 调出资金和债务还本支出 | B31: 5,400 | C31: =D31-B31 -> 0 | D31: 5400
A32: 安排预算稳定调节基金 | B32: 0 | C32: =D32-B32 -> 2,862 | D32: 2862
A33: 结转下年支出 | B33: 0 | C33: =D33-B33 -> 35,000 | D33: 35000
A34: 支出总计 | B34: =SUM(B28:B29)+B33 -> 670,560 | C34: =SUM(C28:C29)+C33 -> 52,714 | D34: =SUM(D28:D29)+D33 -> 723,274

Sheet 政府性基金收入调整
A1: 附表三
A2: 2024年区级政府性基金收入调整表
F3: 单位：万元
A4: 项 目 | B4: 2024年预算数 | D4: 2024年调整数
B5: 金额 | C5: 占本年收入合计% | D5: 调整金额 | E5: 调整后预算数 | F5: 占本年收入合计%
A6: 一、国有土地使用权出让收入
A7: 二、国有土地收益基金收入
A8: 三、农业土地开发资金收入
A9: 四、城市基础设施配套费收入
A10: 五、彩票公益金收入
A11: 六、污水处理费收入
A12: 七、其他政府性基金收入
A13: 八、专项债务对应项目专项收入
A14: 本年收入合计
A15: 债务转贷收入 | B15: =B16 -> 54,000 | D15: =E15-B15 -> 51,600 | E15: =E16 -> 105,600
A16: 地方政府专项债券转贷收入 | B16: 54,000 | D16: 51,600 | E16: =51600+54000 -> 105,600
A17: 转移性收入 | B17: =SUM(B18:B20) -> 455,523 | D17: -312,917 | E17: =SUM(E18:E20) -> 142,606
A18: 上级补助收入 | B18: 440,000 | D18: -316,610 | E18: 123,390
A19: 调入资金 | B19: 15,500 | D19: 3,541 | E19: =7345+6000+5696 -> 19,041
A20: 上年结转收入 | B20: 23 | D20: 152 | E20: 175
A21: 收入总计 | B21: =B15+B17 -> 509,523 | D21: =E21-B21 -> -261,317 | E21: =E17+E15 -> 248,206

Sheet 政府性基金支出调整
A1: 附表四
A2: 2024年区级政府性基金支出调整表
F3: 单位：万元
A4: 项 目 | B4: 2024年预算数 | D4: 2024年预算调整数
B5: 金额 | C5: 占本年支出合计% | D5: 调整金额 | E5: 调整后预算数 | F5: 占本年支出合计%
A6: 一、文化旅游体育与传媒支出 | C6: =B6/610725*100 -> 0.00 | D6: =E6-B6 -> 6 | E6: 6 | F6: =E6/E18*100 -> 0.00
A7: 二、社会保障和就业支出
A8: 三、城乡社区支出 | B8: 436,830 | D8: =E8-B8 -> -353,305 | E8: 83,525 | F8: =E8/E18*100 -> 56.22
A9: 四、农林水支出
A10: 五、交通运输支出
A11: 六、资源勘探信息支出
A12: 七、金融支出
A13: 八、其他支出 | B13: 150 | D13: =E13-B13 -> 51,721 | E13: =E14+E15 -> 51,871 | F13: =E13/E18*100 -> 34.92
A14: 其中：彩票公益金安排支出 | B14: 150 | D14: =E14-B14 -> 121 | E14: 271 | F14: =E14/E18*100 -> 0.18
A15: 其他地方自行试点项目收益专项债券收入安排的支出 | D15: =E15-B15 -> 51,600 | E15: =39406+12194 -> 51,600 | F15: =E15/E18*100 -> 34.73
A16: 九、债务付息支出 | B16: 12,543 | D16: =E16-B16 -> 613 | E16: 13,156 | F16: =E16/E18*100 -> 8.86
A17: 十、抗疫特别国债的支出
A18: 本年支出合计 | B18: =SUM(B6:B13,B16,B17) -> 449,523 | D18: =E18-B18 -> -300,965 | E18: =SUM(E6:E13,E16,E17) -> 148,558 | F18: 100.00
A19: 债务还本支出 | B19: =B20 -> 60,000 | D19: =E19-B19 -> 0 | E19: =E20 -> 60,000
A20: 地方政府其他专项债务还本支出 | B20: 60,000 | D20: =E20-B20 -> 0 | E20: 60,000
A21: 转移性支出 | D21: =E21-B21 -> 39,648 | E21: =SUM(E22:E24) -> 39,648
A22: 上解上级支出 | D22: =E22-B22 -> 60 | E22: 60
A23: 调出资金
A24: 结转下年支出 | D24: =E24-B24 -> 39,588 | E24: 39,588
A25: 支出总计 | B25: =B18+B19+B21 -> 509,523 | D25: =D18+D19+D21 -> -261,317 | E25: =E18+E19+E21 -> 248,206

Sheet 社保基金收入调整
A1: 附表五
A2: 2024年区社会保险基金预算收入调整表
A3: 单位：万元
A4: 项目 | B4: 2024年预算数 | C4: 2024年预算调整数
C5: 调整金额 | D5: 调整后预算数
A6: 一、城乡居民基本养老保险基金收入 | B6: 12,007 | C6: 1,500 | D6: =C6+B6 -> 13,507
A7: 其中：保险费收入 | B7: 1,470 | C7: 0 | D7: 1,470
A8: 财政补贴收入 | B8: 6,974 | C8: -1,300 | D8: 5,674
A9: 其他收入 | B9: 3,563 | C9: 2,800 | D9: 6,363
A10: 二、机关事业单位养老保险基金收入 | B10: =B11+B12+B13 -> 46,549 | C10: 0 | D10: =D11+D12+D13 -> 46,549
A11: 其中：保险费收入 | B11: 22,449 | C11: 0 | D11: 22,449
A12: 财政补贴收入 | B12: 23,000 | C12: 0 | D12: 23,000
A13: 其他收入 | B13: 1,100 | C13: 0 | D13: 1,100
A14: 社会保险基金收入合计 | B14: 58,556 | C14: =C10+C6 -> 1,500 | D14: =C14+B14 -> 60,056
A15: 其中：保险费收入 | B15: 23,919 | C15: 0 | D15: =C15+B15 -> 23,919
A16: 财政补贴收入 | B16: 29,974 | C16: =C8+C12 -> -1,300 | D16: 28,674
A17: 其他收入 | B17: 4,663 | C17: 2,800 | D17: 7,463

Sheet 社保基金支出调整
A1: 附表六
A2: 2024年区社会保险基金预算支出调整表
A3: 单位：万元
A4: 项目 | B4: 2024年预算数 | C4: 2024年预算调整数
C5: 调整金额 | D5: 调整后预算数
A6: 一、城乡居民基本养老保险基金支出 | B6: 11,726 | C6: -1,086 | D6: =B6+C6 -> 10,640
A7: 其中：基本养老保险待遇金支出 | B7: 11,650 | C7: -1,126 | D7: 10,524
A8: 其他支出 | B8: 76 | C8: 40 | D8: 116
A9: 二、机关事业单位养老保险基金支出 | B9: 45,470 | C9: 0 | D9: 45,470
A10: 其中：基本养老保险待遇金支出 | B10: 45,380 | C10: 0 | D10: 45,380
A11: 其他支出 | B11: 90 | C11: 0 | D11: 90
A12: 社会保险基金支出合计 | B12: 57,196 | C12: =C6+C9 -> -1,086 | D12: 56,110
A13: 其中：社会保险待遇金支出 | B13: 57,030 | C13: -1,126 | D13: 55,904
A14: 其他支出 | B14: 166 | C14: 40 | D14: 206

Sheet 社保基金结余
A1: 附表七
A2: 2024年区社会保险基金预算结余调整表
D3: 单位：万元
A4: 项目 | B4: 2024年预算数 | C4: 2024年预算调整数
C5: 调整金额 | D5: 调整后预算数
A6: 一、社会保险基金本年收支结余合计 | B6: 1,361 | C6: 2,586 | D6: 3,947
A7: （一）城乡居民基本养老保险基金 | B7: 281 | C7: 2,586 | D7: 2,867
A8: （二）机关事业单位养老保险基金 | B8: 1,080 | C8: 0 | D8: 1,080
A9: 二、社会保险基金年末滚存结余合计 | B9: 85,342 | C9: 2,586 | D9: 87,928
A10: （一）城乡居民基本养老保险基金 | B10: 80,141 | C10: 2,586 | D10: 82,727
A11: （二）机关事业单位养老保险基金 | B11: 5,201 | C11: 0 | D11: 5,201

Sheet 国有资本收入预算调整
A1: 附表八
A2: 2024年区国有资本经营预算收入调整草案表
D3: 单位：万元
A4: 项目 | B4: 2024年预算数 | C4: 2024年预算调整数
C5: 调整金额 | D5: 调整后预算数
A6: 一、利润收入 | C6: =D6-B6 -> 0
A7: 建筑施工企业利润收入 | C7: 0
A8: 二、股利股息收入 | B8: 360 | C8: -18 | D8: 342
A9: 三、产权转让收入 | C9: 0
A10: 四、清算收入 | C10: 0
A11: 五、其他国有资本经营预算收入 | C11: 0
A12: 本年收入合计 | B12: 360 | C12: -18 | D12: 342
A13: 上级补助收入 | B13: 254 | C13: 48 | D13: 302
A14: 上年结转收入 | B14: 688 | C14: 0 | D14: 688
A15: 收入总计 | B15: =SUM(B12:B14) -> 1,302 | C15: 30 | D15: =SUM(D12:D14) -> 1,332

Sheet 国有资本支出预算调整
A1: 附表九
A2: 2024年区国有资本经营预算支出调整草案表
D3: 单位：万元
A4: 项目 | B4: 2024年预算数 | C4: 2024年预算调整数
C5: 调整金额 | D5: 调整后预算数
A6: 一、社会保障和就业支出 | B6: 0 | C6: 0 | D6: 0
A7: 二、国有资本经营预算支出 | B7: 1,176 | C7: =D7-B7 -> -921 | D7: 255
A8: 解决历史遗留问题及改革支出 | B8: 556 | C8: -301 | D8: 255
A9: 国有企业退休人员社会化管理补助支出 | B9: 556 | C9: -301 | D9: 255
A10: 其他国有资本经营预算支出 | B10: 620 | C10: -620 | D10: 0
A11: 其他国有资本经营预算支出 | B11: 620 | C11: -620 | D11: 0
A12: 本年支出合计 | B12: =B7 -> 1,176 | C12: -921 | D12: 255
A13: 调出资金 | B13: 126 | C13: -6 | D13: 120
A14: 结转下年支出 | B14: 0 | C14: 957 | D14: 957
A15: 支出总计 | B15: =SUM(B12:B14) -> 1,302 | C15: 30 | D15: =SUM(D12:D14) -> 1,332
